Cogmind - Beta 15 @@@ ROGUE MODE // 2025.05.18 @ 19:32:26 Player: QXander Result: Destroyed by H-61 Shepherd with Heavy Assault Cannon Performance ------------- Evolutions (4) 2000 Regions Visited (4) 800 Robots Destroyed (18) 90 Value Destroyed (806) 806 Prototype IDs (12) 240 Alien Tech Used (0) 0 Bonus (300) 300 TOTAL SCORE: 4236 Bonus ------- Registered with UFD 300 Cogmind --------- Core Integrity 0/850 Matter 281/300 Energy 380/380 System Corruption 22% Temperature Cool (0) Movement Rolling (100) Location -6/Factory Parts ------- > --- POWER (3) -------- Nuclear Core Nuclear Core > --- PROPULSION (4) --- Compact Wheel Compact Wheel > --- UTILITY (5) ------ Melee Analysis Suite Improved Melee Analysis Suite Microactuators Microactuators Actuator Array > --- WEAPON (3) ------- Power Maul > --- INVENTORY (5) ---- Improved Propulsion Shielding Layered Medium Armor Plating Magnetic Acceleration Cannon DRS Beacon (Ready) Peak State ------------ > --- POWER ------------ Micro Nuclear Core F-cell Engine F-cell Engine > --- PROPULSION ------- Gravmag Array Gravmag Array > --- UTILITY ---------- Scrap Suit Small Storage Unit Compact Battery Advanced Signal Interpreter > --- WEAPON ----------- Shock Rifle Shock Rifle Power Maul > --- INVENTORY -------- Reaction Control System Hardlight Generator Magnetic Acceleration Cannon DRS Beacon [Rating: 64] Favorites ----------- Power Ion Engine Engine Ion Engine Power Core Micro Nuclear Core Propulsion Compact Wheel Wheel Compact Wheel Hover Unit Gravmag Array Flight Unit Nuclear Pulse Thruster Utility Small Storage Unit Device Scrap Suit Storage Small Storage Unit Processor Advanced Signal Interpreter Hackware Improved System Shield Weapon Light Assault Rifle Energy Gun Shock Rifle Energy Cannon Heavy Particle Cannon Ballistic Gun Light Assault Rifle Ballistic Cannon Gauss Cannon Impact Weapon Power Maul Build | -11 -10 -10 -9 -6 ------- Run | Yrd Mat Sub Scr Fac Slots Evolved 8 | . . . . 8 Power 2 | . . . . 2 Propulsion 2 | . . . . 2 Utility 3 | . . . . 3 Weapon 1 | . . . . 1 Parts Attached 51 | 6 2 . 7 36 Power 10 | 1 . . . 9 Engine 5 | 1 . . . 4 Core 5 | . . . . 5 Reactor . | . . . . . Propulsion 8 | 2 . . . 6 Treads . | . . . . . Leg . | . . . . . Wheel 4 | 2 . . . 2 Hover 3 | . . . . 3 Flight 1 | . . . . 1 Utility 22 | 1 2 . 5 14 Device 11 | . 2 . 2 7 Storage 2 | 1 . . . 1 Processor 8 | . . . 3 5 Hackware 1 | . . . . 1 Protection . | . . . . . Artifact . | . . . . . Weapon 11 | 2 . . 2 7 Energy Gun 2 | . . . . 2 Energy Cannon 2 | . . . 1 1 Ballistic Gun 3 | 2 . . . 1 Ballistic Cannon 2 | . . . 1 1 Launcher . | . . . . . Special Weapon . | . . . . . Impact Weapon 2 | . . . . 2 Slashing Weapon . | . . . . . Piercing Weapon . | . . . . . Special Melee Weapon . | . . . . . Unidentified Prototypes 2 | . . . . 2 Corrupted Parts 1 | . . . . 1 System Corruption 1 | . . . . 1 Parts Lost 17 | . . . . 17 Power 5 | . . . . 5 Propulsion 3 | . . . . 3 Utility 5 | . . . . 5 Weapon 4 | . . . . 4 Highest Loss Streak 5 | . . . . 5 To Critical Strikes . | . . . . . Average Backups 3 | . 2 5 4 2 Power 1 | . 1 2 1 . Propulsion . | . . . . . Utility 1 | . . 2 2 1 Weapon . | . . 1 . . Tool/Special . | . . . . . Unused Backups 9 | . . . 5 4 Power 1 | . . . 1 . Propulsion . | . . . . . Utility 6 | . . . 2 4 Weapon 2 | . . . 2 . Tool/Special . | . . . . . Average Slot Usage (%) 80 | . 92 100 92 63 Engine 10 | . 14 14 14 5 Core 2 | . . . . 5 Wheel 17 | . 28 28 28 4 Hover 3 | . . . . 7 Device 8 | . 7 14 7 8 Storage 9 | . 14 14 8 8 Processor 6 | . . . 6 7 Energy Gun 1 | . . . . 3 Energy Cannon 3 | . . . 6 2 Ballistic Gun 8 | . 28 28 12 . Ballistic Cannon 4 | . . . 7 1 Impact Weapon 1 | . . . . 3 Peak Build Rating 64 | 6 9 9 19 64 Average Rating 24 | 4 6 9 12 42 On Entrance 8 | . 6 9 9 18 Naked Turns . | . . . . . Heaviest Build 50 | 12 13 13 23 50 Greatest Support 40 | 26 26 26 26 40 Greatest Overweight (x) 3 | 3 . . . 1 Average Overweight (x) . | . . . . . Largest Inventory Capacity 8 | 8 8 8 8 8 Average Capacity 7 | 7 8 8 6 7 Most Carried 8 | 1 5 5 8 8 Average Carried 4 | . 2 5 4 3 Final Capacity 8 | 8 8 8 5 5 Final Carried 5 | 1 5 5 3 4 Class Distribution -------------------- 79% | Mutant 12% | Scrapper 3% | Scavenger-Mutant Dominant Class ---------------- Mutant | -10/Materials Mutant | -10/Subcaves Mutant | -9/Scraptown Mutant | -6/Factory Resources | -11 -10 -10 -9 -6 ----------- Run | Yrd Mat Sub Scr Fac Matter Collected 951 | 218 68 . 50 615 Remotely . | . . . . . Salvage Created 796 | . 18 . . 778 Parts 24 | . 3 . . 21 Haulers Intercepted . | . . . . . Recyclers Shooed 2 | . . . . 2 Parts Field Recycled . | . . . . . Retrieved Matter . | . . . . . Parts Self-Destructed . | . . . . . Prevented . | . . . . . Kills | -11 -10 -10 -9 -6 ------- Run | Yrd Mat Sub Scr Fac Combat Hostiles Destroyed 15 | . . . . 15 Melee 7 | . . . . 7 Guns 2 | . . . . 2 Cannons 1 | . . . . 1 AOE 1 | . . . . 1 Classes Destroyed 7 | . 1 . . 6 Builder 1 | . . . . 1 Tunneler 1 | . 1 . . . Recycler 1 | . . . . 1 Swarmer 3 | . . . . 3 Grunt 5 | . . . . 5 Hunter 1 | . . . . 1 Programmer 6 | . . . . 6 Best Kill Streak 3 | . 1 . . 3 Combat Bots Only 3 | . . . . 3 Max Kills in Single Turn 1 | . 1 . . 1 Gunslinging . | . . . . . Exploded 1 | . . . . 1 Melee 1 | . . . . 1 Uniques/NPCs Destroyed . | . . . . . Combat | -11 -10 -10 -9 -6 -------- Run | Yrd Mat Sub Scr Fac Hostile Shots Fired 309 | . . . . 309 Missed 105 | . . . . 105 Hits 204 | . . . . 204 Projectile 204 | . . . . 204 AOE 1 | . . . . 1 Critical Strikes 11 | . . . . 11 Damage Taken 2863 | . . . . 2863 Core 907 | . . . . 907 Absorbed by Shields 203 | . . . . 203 Regen/Repaired (Parts) 28 | . . . 14 14 Core Remaining (%) 100 | 100 . . 100 . Volleys Fired 43 | . 3 . . 40 Largest 3 | . 2 . . 3 Hottest 188 | . 40 . . 188 Shots Fired 62 | . 6 . . 56 Gun 30 | . 6 . . 24 Cannon 32 | . . . . 32 Launcher . | . . . . . Special . | . . . . . Kinetic 21 | . 6 . . 15 Thermal 4 | . . . . 4 Explosive . | . . . . . Electromagnetic 37 | . . . . 37 Robot Hit Streak 9 | . 2 . . 9 Robot Miss Streak 6 | . 3 . . 6 Penetration Max . | . . . . . Secondary Targets . | . . . . . Shots Hit Robots 73 | . 2 . . 71 Core Hits 20 | . 2 . . 18 Critical Kills 1 | . . . . 1 Critical Parts Destroyed 11 | . . . . 11 Critical Strikes 14 | . . . . 14 Blast 1 | . . . . 1 Corrupt 1 | . . . . 1 Smash 12 | . . . . 12 Melee Attacks 41 | . . . . 41 Impact 41 | . . . . 41 Slashing . | . . . . . Piercing . | . . . . . Sneak Attacks 2 | . . . . 2 Combat Hostiles . | . . . . . Follow-up Attacks . | . . . . . Damage Inflicted 2482 | . 18 . . 2464 Guns 86 | . 18 . . 68 Cannons 472 | . . . . 472 Explosions 120 | . . . . 120 Melee 1804 | . . . . 1804 Ramming . | . . . . . Kinetic 369 | . 18 . . 351 Thermal 195 | . . . . 195 Explosive . | . . . . . Electromagnetic 114 | . . . . 114 Impact 1804 | . . . . 1804 Slashing . | . . . . . Piercing . | . . . . . Highest Corruption 22 | . . . . 22 Average Corruption 11 | . . . . 11 Corruption Purged . | . . . . . Corruption Blocked . | . . . . . Effects 47 | . . . . 47 Message Errors 7 | . . . . 7 Matter Fused 13 | . . . . 13 Heat Flow Errors 10 | . . . . 10 Energy Discharges 6 | . . . . 6 Parts Rejected 1 | . . . . 1 Parts Fused 1 | . . . . 1 Data Loss (minor) 6 | . . . . 6 Alerts 1 | . . . . 1 Misdirections 2 | . . . . 2 Overload Shots . | . . . . . Overflow Damage 804 | . . . . 804 Projectiles 19 | . . . . 19 Explosions 4 | . . . . 4 Melee 781 | . . . . 781 Knockbacks 15 | . . . . 15 Impact 12 | . . . . 12 Kinetic 3 | . . . . 3 Secondary . | . . . . . Self-Inflicted Damage 28 | . . . . 28 Shots 1 | . . . . 1 Rammed . | . . . . . Targets Rammed . | . . . . . Kicked . | . . . . . Crushed . | . . . . . Highest Temperature 260 | . . . . 260 Average Temperature 74 | . . . . 74 Received Heat Transfer 210 | . . . . 210 Siege Activations . | . . . . . Martial Activations . | . . . . . Shielding Activations . | . . . . . Robots Disrupted . | . . . . . Combat Hostiles . | . . . . . Robots Corrupted 5 | . . . . 5 Combat Hostiles 4 | . . . . 4 Parts Fried 8 | . . . . 8 Impact Corruptions 27 | . . . . 27 Robots Melted . | . . . . . Combat Hostiles . | . . . . . Parts Melted . | . . . . . Heat Transferred 211 | . . . . 211 Parts Sabotaged . | . . . . . Parts Stolen . | . . . . . Parts Stripped . | . . . . . Power Chain Reactions 1 | . . . . 1 Alert | -11 -10 -10 -9 -6 ------- Run | Yrd Mat Sub Scr Fac Maximum Alert Level . | . . . . . Low Security (%) 100 | 100 100 . . 100 Level 1 . | . . . . . Level 2 . | . . . . . Level 3 . | . . . . . Level 4 . | . . . . . Level 5 . | . . . . . High Security . | . . . . . Max Security . | . . . . . Peak Influence 133 | . 15 . . 133 Initial . | . . . . . Average 43 | . 1 . . 50 Influence Increases 607 | . 20 . . 587 Destroy 0b10 Robot/C 300 | . . . . 300 Destroy 0b10 Robot/NC 15 | . 5 . . 10 Destroy Leader 60 | . . . . 60 Disable Machine 15 | . . . . 15 Destroy Structure 7 | . . . . 7 Partial Spotted 45 | . 15 . . 30 Lose Combat Pursuer 165 | . . . . 165 Influence Decreases 519 | . 20 . . 499 Time Decay 369 | . 20 . . 349 Lost Part 150 | . . . . 150 Squads Dispatched 8 | . 1 . . 7 Investigation . | . . . . . Extermination 4 | . . . . 4 Reinforcement 1 | . 1 . . . Assault . | . . . . . Garrison 3 | . . . . 3 Intercept . | . . . . . Searches Triggered . | . . . . . Construction Impeded . | . . . . . Haulers Reinforced . | . . . . . Active Scanning Responses . | . . . . . Cargo Convoy Interrupts 1 | . . . . 1 Stealth | -11 -10 -10 -9 -6 --------- Run | Yrd Mat Sub Scr Fac Distress Signals 2 | . 1 . . 1 Communications Jammed . | . . . . . Distress Signals . | . . . . . Times Spotted 38 | . 2 . . 36 Peak Tracking Total 12 | . 2 . . 12 Tactical Retreats 6 | . . . . 6 Traps | -11 -10 -10 -9 -6 ------- Run | Yrd Mat Sub Scr Fac Traps Triggered . | . . . . . Indirectly . | . . . . . Trap Hack Attempts . | . . . . . Triggered . | . . . . . Disarmed . | . . . . . Reprogrammed . | . . . . . Reused . | . . . . . Traps Extracted . | . . . . . Installed . | . . . . . Triggered . | . . . . . Machines | -11 -10 -10 -9 -6 ---------- Run | Yrd Mat Sub Scr Fac Machines Disabled 1 | . . . . 1 Max in Single Turn 1 | . . . . 1 Machines Repaired . | . . . . . Machines Dismantled . | . . . . . Machines Sabotaged . | . . . . . Overloaded Fab Kills . | . . . . . Hacking | -11 -10 -10 -9 -6 --------- Run | Yrd Mat Sub Scr Fac Machines Accessed 11 | . 1 . 3 7 Terminals 5 | . 1 . . 4 Fabricators . | . . . . . Repair Stations 1 | . . . . 1 Recycling Units 2 | . . . . 2 Scanalyzers . | . . . . . Garrison Access . | . . . . . Total Hacks 19 | . 1 . 5 13 Successful 12 | . . . 5 7 Failed 7 | . 1 . . 6 Catastrophic 2 | . 1 . . 1 Database Lockouts . | . . . . . Manual . | . . . . . Terminals 7 | . 1 . . 6 Fabricators . | . . . . . Repair Stations 2 | . . . . 2 Recycling Units 5 | . . . . 5 Scanalyzers . | . . . . . Garrison Access . | . . . . . Terminal Hacks 9 | . . . 5 4 Record 5 | . . . 4 1 Alert Level 1 | . . . . 1 Locate Traps 1 | . . . . 1 Zone Layout 1 | . . . . 1 Proto ID Catalog 1 | . . . 1 . Fabricator Hacks . | . . . . . Repair Station Hacks . | . . . . . Recycling Unit Hacks 3 | . . . . 3 Report Inventory 1 | . . . . 1 Retrieve Matter 1 | . . . . 1 Retrieve Components 1 | . . . . 1 Scanalyzer . | . . . . . Garrison Access Hacks . | . . . . . Unauthorized Hacks . | . . . . . Terminals . | . . . . . Fabricators . | . . . . . Repair Stations . | . . . . . Recycling Units . | . . . . . Scanalyzers . | . . . . . Garrison Access . | . . . . . Data Cores Recovered . | . . . . . Used . | . . . . . Hacking Detections 7 | . 1 . . 6 Full Trace Events . | . . . . . Feedback Events . | . . . . . Feedback Blocked . | . . . . . Robot Schematics Acquired . | . . . . . Robots Built . | . . . . . Authchips . | . . . . . Time . | . . . . . Total Robot Build Rating . | . . . . . Part Schematics Acquired . | . . . . . Parts Built . | . . . . . Authchips . | . . . . . Time . | . . . . . Total Part Build Rating . | . . . . . Parts Repaired . | . . . . . Time . | . . . . . Parts Recycled . | . . . . . Recycled Matter . | . . . . . Retrieved Matter . | . . . . . Retrieved Components 1 | . . . . 1 Parts Scanalyzed . | . . . . . Part Schematics Acquired . | . . . . . Parts Damaged . | . . . . . Bothacking | -11 -10 -10 -9 -6 ------------ Run | Yrd Mat Sub Scr Fac Used RIF Installer . | . . . . . Robots Hacked . | . . . . . Non-combat . | . . . . . Combat . | . . . . . Robot Hacks Applied . | . . . . . Relay Couplers Released . | . . . . . Fabnet Peak Effective % . | . . . . . Robots Rewired . | . . . . . Allies Hacked . | . . . . . Hacks Repelled . | . . . . . Allies | -11 -10 -10 -9 -6 -------- Run | Yrd Mat Sub Scr Fac Total Allies . | . . . . . Largest Group . | . . . . . Highest-Rated Group . | . . . . . Highest-Rated Ally . | . . . . . Total Orders . | . . . . . Ally Attacks . | . . . . . Total Damage . | . . . . . Kills . | . . . . . Allies Corrupted . | . . . . . Allies Melted . | . . . . . Intel | -11 -10 -10 -9 -6 ------- Run | Yrd Mat Sub Scr Fac Active Infowar (turns) 967 | . 93 242 471 161 Sensors 161 | . . . . 161 Terrain 735 | . 22 242 471 . Seismic 71 | . 71 . . . Robot Analysis Total . | . . . . . Derelict Logs Recovered . | . . . . . Drone Launches . | . . . . . Drone Recoveries . | . . . . . Exploration | -11 -10 -10 -9 -6 ------------- Run | Yrd Mat Sub Scr Fac Turns Passed 3851 | 62 177 242 1739 1631 Spaces Moved 4165 | 51 181 234 1886 1813 Core 119 | 16 . . . 103 Treads . | . . . . . Legs . | . . . . . Wheels 2790 | 35 181 234 1886 454 Hover 1210 | . . . . 1210 Flight 46 | . . . . 46 Fastest Speed 40 | 50 90 90 90 40 Average Speed 81 | 103 90 90 90 70 Slowest Speed 200 | 200 90 90 90 120 Overloaded Moves . | . . . . . Propulsion Burnouts . | . . . . . Robots Hopped . | . . . . . Potential Cave-ins . | . . . . . Cave-ins Triggered . | . . . . . Exploration Rate (%) 27 | 4 23 7 79 22 Regions Visited 4 Branch Regions 2 Pre-discovered Areas . | . . . . . Known Exits Taken 1 | . . . 1 . Unknown Exits Taken 3 | 1 1 1 . . Scrap Searched 6 | . . . 6 . Spaces Dug . | . . . . . Terrain Destroyed 7 | . . . . 7 Melee . | . . . . . Projectile 4 | . . . . 4 AOE 3 | . . . . 3 Terrain Rammed . | . . . . . Walls Destroyed . | . . . . . Machines Disabled . | . . . . . Actions | -11 -10 -10 -9 -6 --------- Run | Yrd Mat Sub Scr Fac Total 4502 | 57 189 265 1934 2057 Wait 86 | . . 32 16 38 Move 4161 | 50 180 233 1885 1813 Hop . | . . . . . Pick Up 28 | 1 3 . 10 14 Fast Attach 34 | 6 2 . 2 24 Attach 32 | . . . 5 27 Detach 45 | . 1 . 7 37 Swap 1 | . . . . 1 Drop 31 | . . . 9 22 Fire 43 | . 3 . . 40 Melee 41 | . . . . 41 Ram . | . . . . . Kick . | . . . . . Crush . | . . . . . Escape Stasis . | . . . . . Rewire . | . . . . . Trap . | . . . . . Miscellaneous . | . . . . . Route ------- -11/Scrapyard -10/Materials -10/Subcaves -9/Scraptown (discovered 2 exits: *Fac x2) -6/Factory History --------- Turn | Location | Event 39 | -11/Scrapyard | Discovered new exit (range 15) 63 | -11/Scrapyard | Entered Materials 64 | -10/Materials | Met a group of wandering Federalists 188 | -10/Materials | Discovered new exit (range 7) 240 | -10/Materials | Entered Subcaves 240 | -10/Subcaves | Accompanied by 1 ally 241 | -10/Subcaves | Continued accompanying wandering Federalists (3) 241 | -10/Subcaves | Approached by a straggling Scientist 315 | -10/Subcaves | Build established: Mutant 475 | -10/Subcaves | Wandering Federalist uncovered a shortcut to Scraptown 482 | -10/Subcaves | Entered Scraptown 698 | -9/Scraptown | Visited Red Mages 789 | -9/Scraptown | Visited Cyclists 868 | -9/Scraptown | Visited The Evicted 897 | -9/Scraptown | Heard Great Nut preacher, LISTEN AND RECITE! 943 | -9/Scraptown | Discovered new exit (range 5) 956 | -9/Scraptown | Identified exit to Factory 1061 | -9/Scraptown | Visited UFD Registry 1063 | -9/Scraptown | Registered with UFD as "Smoothspreader" 1366 | -9/Scraptown | Visited Cartography Club 1393 | -9/Scraptown | Visited Derelict Rescue Squad 1401 | -9/Scraptown | Found DRS Beacon 1448 | -9/Scraptown | Visited Junk Repository 1519 | -9/Scraptown | Visited Scrap Suit Storage 1528 | -9/Scraptown | Found Scrap Suit 1622 | -9/Scraptown | Visited Curators Association 1689 | -9/Scraptown | Visited Research Penetration Think Tank 1856 | -9/Scraptown | Build established: Scrapper 1859 | -9/Scraptown | Visited DA-N13 Charitable Foundation 1863 | -9/Scraptown | Found DCF Scrap (28 items) 1923 | -9/Scraptown | Visited A0-MCA Data Center 1929 | -9/Scraptown | Given an A- rating by A0-MCA 1931 | -9/Scraptown | Found A0-MCA's Component Scanner 1956 | -9/Scraptown | Visited Science Guys 2114 | -9/Scraptown | Found Scrap Suit 2211 | -9/Scraptown | Discovered exit to Factory (range 5) 2221 | -9/Scraptown | Entered Factory 2221 | -6/Factory | Evolved 8 slots: Power x2, Propulsion x2, Utility x3, Weapon x1 2541 | -6/Factory | Build established: Mutant 2723 | -6/Factory | Lost 3 parts (2p1w) 3044 | -6/Factory | System corruption reached 10% 3165 | -6/Factory | Garrison activated, responded to threat 3409 | -6/Factory | Lost 5 parts (1p2u2w) 3428 | -6/Factory | Cargo convoy interrupted 3475 | -6/Factory | Lost 4 parts (1p2n1u) 3477 | -6/Factory | Core integrity fell below 50% 3536 | -6/Factory | Lost 3 parts (1n2u) 3536 | -6/Factory | Core integrity fell below 20% 3852 | -6/Factory | Destroyed by H-61 Shepherd with Heavy Assault Cannon Last Messages --------------- R-10 Processor collects Microactuators. Acquired 148 matter. LM398 H3%WEUPNIKYRYG System corrupted: Heat flow error (+129). Acquired Lyr. Medium Armor Plating. Dropped Sml. Storage Unit. System corrupted: IFF burst signal emitted. System corrupted: Heat flow error (+194). System corrupted: Component data lost. System corrupted: Heat flow error (+223). W-25 Informer sends out distress signal. System corrupted: Matter fused (-9). Slug penetrates Wall. Acquired Power Maul. Slug penetrates Wall. H-66 Slayer knocked back. Penetrated by Slug. Power Maul destroyed. Mic. Nuclear Core destroyed. H-66 Slayer destroyed. Map ----- +----------------------------------------------------+ | ?????????????????????????????????????????????????? | | ???????????##########????????????????????????????? | | ???????????# ]! #########????????????????????? | | ???????????# ]! # [#?????#+###??????????? | | ???????????# # ##### #??????????? | | ???????????# # ! "" #??????????? | | ???????????# ! + " T" ?????? | | ???????????# ! # #??????????? | | ???????????# ! # ##### #??????????? | | ???????????# # #????????????????????? | | ?????# ??? # ## ##????????????????????? | | ?????# """ ######+#### #?????????????????????? | | ?????# """ #????# #### #?????????????????????? | | ?????# #????# H #?????????????????????? | | ###### """ #????# #?????????????????????? | | ## """ #????# #?????????????????????? | | [ ## """ #????# #?????????????????????? | | ! ## #????# #?????????????????????? | | " ## #????# #### #?????????????????????? | | " ####+######## #??# #?????????????????????? | | " + #??# #?????????????????????? | | " #### ##########??# ##########????????????? | | " #??# #???????????# # ! #????????????? | | " #??# #???????????# * # #????????????? | | " #??# #???????????# [%[# #????????????? | | " #??# #???????????# @ # "" #????????????? | | " #??# #???????????# # """ #????????????? | | #??# #???????????+ % + S" #????????????? | | ######## #???????????# # """ #????????????? | | #???????????# # """ #????????????? | | ##########???????????+ # #????????????? | | #????????????????????###+############????????????? | | #????????????????????????????????????????????????? | | #????????????????????????????????????????????????? | | #####????????????????????????????????????????????? | | ^ #????????????????????????????????????????????? | | #????????????????????????????????????????????? | | ! #????????????????????????????????????????????? | | % #????????????????????????????????????????????? | | * #????????????????????????????????????????????? | | #????????????????????????????????????????????? | | = #????????????????????????????????????????????? | | #????????????????????????????????????????????? | | #####????????????????????????????????????????????? | | | | | | | | | | | | | +----------------------------------------------------+ Best States ------------- Heat Dissipation 37 Energy Generation 43 Energy Capacity 1150 Matter Stores 300 Matter Capacity 300 Sight Range 16 Robot Scan Range 16 Terrain Scan Range 16 Terrain Scan Density 10 Melee Speed Boost 40 Evasion (%) 62 Targeting Accuracy 8 Melee Accuracy 16 Defensive Hacking 12 Item Schematics ----------------- None Robot Schematics ------------------ None Fabricated ------------ Nothing Repaired ---------- Nothing Alien Tech Used ----------------- None Achievements -------------- None Challenges ------------ None Game ------ Seed SubdwellerSpacefoldPlating Manual? 0 Play Time 00:53:19 Cumulative 19.5 hours Start 2025.05.18 @ 18:37:46 End 2025.05.18 @ 19:32:26 Sessions 1 Manual Loads 0 Difficulty Rogue Special Mode None Game No. 24 Rogue 24 Adventurer 0 Explorer 0 Win Type - Total 0 Types 0/0/0/0/0/0/0/0/0/0 Lore% 21 Gallery% 22 Achievement% 17 Wizard Run 0 Options --------- Layout 1 ASCII 0 Keyboard 1 Movement Arrows Keybinds 0 Fullscreen 2 Font 24/Smallcaps Map View 50x35 Zoom Use 0% Tactical HUD 0 Map Filters NONE Filters NONE Steam 1 RUN: 950fd156-8ae0-4f96-b2c3-4b729349f6a9